Cogmind - Beta 16 @@@ ROGUE MODE // 2025.10.26 @ 15:49:18 Player: Mxykikker Result: Destroyed by G-34 Mercenary with Small Laser Performance ------------- Evolutions (0) 0 Regions Visited (1) 200 Robots Destroyed (18) 90 Value Destroyed (372) 372 Prototype IDs (2) 40 Alien Tech Used (0) 0 Bonus (0) 0 TOTAL SCORE: 702 Bonus ------- None Cogmind --------- Core Integrity 0/250 Matter 185/300 Energy 36/100 System Corruption 0% Temperature Warm (100) Movement Core (200) Ox3 Location -10/Materials Parts ------- > --- POWER (1) -------- (None) > --- PROPULSION (2) --- (None) > --- UTILITY (2) ------ Heat Sink Small Storage Unit > --- WEAPON (2) ------- Beam Cannon Beam Cannon > --- INVENTORY (8) ---- Beam Cannon Mining Laser Peak State ------------ > --- POWER ------------ Ion Engine > --- PROPULSION ------- Wheel Compact Wheel > --- UTILITY ---------- Small Storage Unit > --- WEAPON ----------- EM Pulse Gun Assault Rifle > --- INVENTORY -------- (None) [Rating: 6] Favorites ----------- Power Ion Engine Engine Ion Engine Propulsion Wheel Wheel Wheel Utility Small Storage Unit Device Heat Sink Storage Small Storage Unit Weapon EM Pulse Gun Energy Gun EM Pulse Gun Energy Cannon Beam Cannon Ballistic Gun Assault Rifle Launcher Grenade Launcher Build | -11 -10 ------- Run | Yrd Mat Slots Evolved . | . . Power . | . . Propulsion . | . . Utility . | . . Weapon . | . . Parts Attached 11 | 7 4 Power 1 | 1 . Engine 1 | 1 . Core . | . . Reactor . | . . Propulsion 3 | 3 . Treads . | . . Leg . | . . Wheel 3 | 3 . Hover . | . . Flight . | . . Utility 2 | 1 1 Device 1 | . 1 Storage 1 | 1 . Processor . | . . Hackware . | . . Protection . | . . Artifact . | . . Weapon 5 | 2 3 Energy Gun 1 | 1 . Energy Cannon 2 | . 2 Ballistic Gun 1 | 1 . Ballistic Cannon . | . . Launcher 1 | . 1 Special Weapon . | . . Impact Weapon . | . . Slashing Weapon . | . . Piercing Weapon . | . . Special Melee Weapon . | . . Unidentified Prototypes . | . . Parts Lost 5 | . 5 Power 1 | . 1 Propulsion 2 | . 2 Utility . | . . Weapon 2 | . 2 Highest Loss Streak 3 | . 3 To Critical Strikes . | . . Average Backups . | . 1 Power . | . . Propulsion . | . . Utility . | . . Weapon . | . 1 Tool/Special . | . . Unused Backups 3 | . 3 Power . | . . Propulsion . | . . Utility . | . . Weapon 3 | . 3 Tool/Special . | . . Average Slot Usage (%) 73 | . 73 Engine 11 | . 11 Wheel 19 | . 19 Device 2 | . 2 Storage 14 | . 14 Energy Gun 7 | . 7 Energy Cannon 7 | . 7 Ballistic Gun 7 | . 7 Launcher 1 | . 1 Peak Build Rating 6 | 6 6 Average Rating 5 | 5 5 On Entrance 3 | . 6 Avg Prop Armor Cover (%) . | . . Naked Turns . | . . Heaviest Build 16 | 14 16 Greatest Support 26 | 26 20 Greatest Overweight (x) 3 | . 3 Average Overweight (x) . | . . Largest Inventory Capacity 8 | 8 8 Average Capacity 7 | 7 8 Most Carried 3 | 2 3 Average Carried . | . 1 Final Capacity 8 | 8 8 Final Carried 2 | . 2 Class Distribution -------------------- 100% | Mutant Dominant Class ---------------- Mutant | -10/Materials Resources | -11 -10 ----------- Run | Yrd Mat Matter Collected 387 | 248 139 Remotely . | . . Salvage Created 442 | 44 398 Parts 29 | 9 20 Haulers Intercepted 1 | . 1 Recyclers Shooed . | . . Parts Field Recycled . | . . Retrieved Matter . | . . Parts Self-Destructed . | . . Prevented . | . . Parts Restored . | . . Kills | -11 -10 ------- Run | Yrd Mat Combat Hostiles Destroyed 9 | . 9 Guns 2 | . 2 Cannons 3 | . 3 AOE 4 | . 4 Classes Destroyed 9 | 1 8 Worker 1 | . 1 Builder 1 | . 1 Tunneler 3 | 3 . Hauler 1 | . 1 Recycler 1 | . 1 Operator 1 | . 1 Watcher 1 | . 1 Swarmer 1 | . 1 Grunt 8 | . 8 Best Kill Streak 7 | 3 7 Combat Bots Only 3 | . 3 Max Kills in Single Turn 3 | 1 3 Gunslinging . | . . Exploded 2 | . 2 Melee . | . . Uniques/NPCs Destroyed . | . . Combat | -11 -10 -------- Run | Yrd Mat Hostile Shots Fired 74 | . 74 Missed 18 | . 18 Hits 56 | . 56 Projectile 56 | . 56 Critical Strikes 2 | . 2 Damage Taken 641 | . 641 Core 255 | . 255 Absorbed by Shields . | . . Core Remaining (%) 100 | 100 . Volleys Fired 44 | 4 40 Largest 2 | 2 2 Hottest 120 | 60 120 Shots Fired 72 | 8 64 Gun 33 | 8 25 Cannon 32 | . 32 Launcher 7 | . 7 Special . | . . Kinetic 17 | 4 13 Thermal 32 | . 32 Explosive 7 | . 7 Electromagnetic 16 | 4 12 Robot Hit Streak 8 | 4 8 Robot Miss Streak 3 | 1 3 Penetration Max . | . . Secondary Targets . | . . Shots Hit Robots 34 | 4 30 Core Hits 26 | 3 23 Critical Kills . | . . Critical Parts Destroyed . | . . Critical Strikes . | . . Melee Attacks . | . . Impact . | . . Slashing . | . . Piercing . | . . Sneak Attacks . | . . Combat Hostiles . | . . Follow-up Attacks . | . . Damage Inflicted 1149 | 53 1096 Guns 254 | 53 201 Cannons 264 | . 264 Explosions 631 | . 631 Melee . | . . Ramming . | . . Kinetic 133 | 13 120 Thermal 264 | . 264 Explosive 631 | . 631 Electromagnetic 121 | 40 81 Impact . | . . Slashing . | . . Piercing . | . . Highest Corruption . | . . Average Corruption . | . . Corruption Purged . | . . Corruption Blocked . | . . Overload Shots . | . . Overflow Damage 10 | . 10 Projectiles . | . . Explosions 10 | . 10 Melee . | . . Knockbacks . | . . Impact . | . . Kinetic . | . . Secondary . | . . Self-Inflicted Damage 24 | . 24 Shots 1 | . 1 Rammed . | . . Targets Rammed . | . . Kicked . | . . Crushed . | . . Highest Temperature 538 | . 538 Average Temperature 154 | . 154 Received Heat Transfer 303 | . 303 Effects 7 | . 7 Matter Decay 2 | . 2 Damage (minor) 2 | . 2 Damage (major) 3 | . 3 Siege Activations . | . . Martial Activations . | . . Shielding Activations . | . . Robots Disrupted . | . . Combat Hostiles . | . . Robots Corrupted . | . . Combat Hostiles . | . . Parts Fried 1 | . 1 Impact Corruptions . | . . Robots Melted . | . . Combat Hostiles . | . . Parts Melted 2 | . 2 Heat Transferred 555 | . 555 Parts Sabotaged . | . . Parts Stolen . | . . Parts Stripped . | . . Power Chain Reactions . | . . Alert | -11 -10 ------- Run | Yrd Mat Maximum Alert Level . | . . Low Security (%) 100 | 100 100 Level 1 . | . . Level 2 . | . . Level 3 . | . . Level 4 . | . . Level 5 . | . . High Security . | . . Max Security . | . . Peak Influence 128 | 10 128 Initial . | . . Average 54 | 1 71 Influence Increases 333 | 15 318 Destroy 0b10 Robot/C 180 | . 180 Destroy 0b10 Robot/NC 45 | 15 30 Destroy Leader 34 | . 34 Successful Hack 9 | . 9 Disable Machine 15 | . 15 Destroy Structure 20 | . 20 Lose Combat Pursuer 30 | . 30 Influence Decreases 224 | 15 209 Time Decay 174 | 15 159 Lost Part 50 | . 50 Squads Dispatched 2 | . 2 Investigation 1 | . 1 Extermination . | . . Reinforcement 1 | . 1 Assault . | . . Garrison . | . . Intercept . | . . Searches Triggered . | . . Construction Impeded . | . . Haulers Reinforced . | . . Active Scanning Responses . | . . Cargo Convoy Interrupts . | . . Stealth | -11 -10 --------- Run | Yrd Mat Distress Signals 3 | . 3 Communications Jammed . | . . Distress Signals . | . . Times Spotted 14 | . 14 Peak Tracking Total 4 | . 4 Tactical Retreats 2 | . 2 Traps | -11 -10 ------- Run | Yrd Mat Traps Triggered 1 | . 1 Indirectly . | . . Trap Hack Attempts . | . . Triggered . | . . Disarmed . | . . Reprogrammed . | . . Reused . | . . Traps Extracted . | . . Installed . | . . Triggered . | . . Machines | -11 -10 ---------- Run | Yrd Mat Machines Disabled 1 | . 1 Max in Single Turn 1 | . 1 Machines Repaired . | . . Machines Dismantled . | . . Machines Sabotaged . | . . Overloaded Fab Kills . | . . Hacking | -11 -10 --------- Run | Yrd Mat Machines Accessed 4 | . 4 Terminals 4 | . 4 Fabricators . | . . Repair Stations . | . . Recycling Units . | . . Scanalyzers . | . . Garrison Access . | . . Total Hacks 10 | . 10 Successful 5 | . 5 Failed 5 | . 5 Catastrophic 1 | . 1 Database Lockouts . | . . Manual 1 | . 1 Terminals 10 | . 10 Fabricators . | . . Repair Stations . | . . Recycling Units . | . . Scanalyzers . | . . Garrison Access . | . . Terminal Hacks 5 | . 5 Prototype ID Bank 1 | . 1 Locate Traps 1 | . 1 Investigation Status 1 | . 1 Hauler Manifests 1 | . 1 Registered Components 1 | . 1 Fabricator Hacks . | . . Repair Station Hacks . | . . Recycling Unit Hacks . | . . Scanalyzer . | . . Garrison Access Hacks . | . . Unauthorized Hacks . | . . Terminals . | . . Fabricators . | . . Repair Stations . | . . Recycling Units . | . . Scanalyzers . | . . Garrison Access . | . . Data Cores Recovered . | . . Used . | . . Hacking Detections 4 | . 4 Full Trace Events . | . . Feedback Events . | . . Feedback Blocked . | . . Robot Schematics Acquired . | . . Robots Built . | . . Authchips . | . . Time . | . . Total Robot Build Rating . | . . Part Schematics Acquired . | . . Parts Built . | . . Authchips . | . . Time . | . . Total Part Build Rating . | . . Part Studies Acquired . | . . Parts Repaired . | . . Time . | . . Parts Recycled . | . . Recycled Matter . | . . Retrieved Matter . | . . Retrieved Components . | . . Parts Scanalyzed . | . . Part Schematics Acquired . | . . Parts Damaged . | . . Bothacking | -11 -10 ------------ Run | Yrd Mat Used RIF Installer . | . . Robots Hacked . | . . Non-combat . | . . Combat . | . . Robot Hacks Applied . | . . Relay Couplers Released . | . . Fabnet Peak Effective % . | . . Robots Rewired . | . . Allies Hacked . | . . Hacks Repelled . | . . Allies | -11 -10 -------- Run | Yrd Mat Total Allies . | . . Largest Group . | . . Highest-Rated Group . | . . Highest-Rated Ally . | . . Total Orders . | . . Ally Attacks . | . . Total Damage . | . . Kills . | . . Allies Corrupted . | . . Allies Melted . | . . Intel | -11 -10 ------- Run | Yrd Mat Active Infowar (turns) . | . . Robot Analysis Total . | . . Derelict Logs Recovered . | . . Drone Launches . | . . Drone Recoveries . | . . Exploration | -11 -10 ------------- Run | Yrd Mat Turns Passed 491 | 116 375 Spaces Moved 371 | 97 274 Core 18 | 4 14 Treads . | . . Legs . | . . Wheels 353 | 93 260 Hover . | . . Flight . | . . Fastest Speed 50 | 50 80 Average Speed 88 | 85 89 Slowest Speed 200 | 90 200 Overloaded Moves . | . . Propulsion Burnouts . | . . Robots Hopped . | . . Potential Cave-ins . | . . Cave-ins Triggered . | . . Exploration Rate (%) 27 | 5 49 Regions Visited 1 Branch Regions . Pre-discovered Areas . | . . Known Exits Taken . | . . Unknown Exits Taken 1 | 1 . Scrap Searched . | . . Spaces Dug . | . . Terrain Destroyed 19 | . 19 Melee . | . . Projectile . | . . AOE 19 | . 19 Terrain Rammed . | . . Walls Destroyed . | . . Machines Disabled . | . . Actions | -11 -10 --------- Run | Yrd Mat Total 461 | 121 340 Wait 19 | 9 10 Move 370 | 96 274 Hop . | . . Pick Up 10 | 4 6 Fast Attach 3 | 2 1 Attach 7 | 4 3 Detach 1 | . 1 Swap 4 | 1 3 Drop 3 | 1 2 Fire 44 | 4 40 Melee . | . . Ram . | . . Kick . | . . Crush . | . . Escape Stasis . | . . Rewire . | . . Trap . | . . Miscellaneous . | . . Route ------- -11/Scrapyard -10/Materials (discovered 2 exits: [*Min x2]) History --------- Turn | Location | Event 11 | -11/Scrapyard | Discovered new exit (range 16) 117 | -11/Scrapyard | Entered Materials 335 | -10/Materials | Build established: Mutant 345 | -10/Materials | Discovered new exit (range 14) 346 | -10/Materials | Discovered new exit (range 15) 359 | -10/Materials | Lost 3 parts (1n2w) 405 | -10/Materials | Core integrity fell below 50% 430 | -10/Materials | Core integrity fell below 20% 492 | -10/Materials | Destroyed by G-34 Mercenary with Small Laser Last Messages --------------- 00422_ Overheating: Sml. Storage Unit damaged (-48). 00422_ Overheating: Wheel damaged (-14). 00425_ Ion Engine destroyed. 00426_ Overheating: Wheel damaged (-4). 00427_ Overheating: Matter decay (-45). 00429_ Overheating: Matter decay (-21). 00430_ Overheating: Sml. Storage Unit damaged (-34). 00432_ Acquired Heat Sink. 00432_ Wheel destroyed. 00434_ Lgt. Ion Engine melted. 00434_ S-10 Pest destroyed. 00449_ Acquired 49 matter. 00453_ Acquired 11 matter. 00456_ R-06 Scavenger collects Aluminum Leg. 00469_ O-16 Technician destroyed. 00481_ K-01 Serf collects debris. 00484_ U-05 Engineer builds a Door. 00490_ G-34 Mercenary destroyed. Map ----- +----------------------------------------------------+ | " ^""" #?#" #????????????????? | | ^^""" #?#"" #????????????????? | | % """ #?#!! #????????????????? | | #?#"" < #????????????????? | | ! ! #?#| #????????????????? | | !! #?#"" #????????????????? | | ! ####+####" #????????????????? | | ## =#### ##????????????????? | | ## """ #??# #?????????????????? | | T# """ #??# + ????????????????? | | """ """ ## """ [#??# # ???????????????? | | """""""" = ! #??# # ??????????????? | | """"" [ %= """#??# #?"""?????????????? | | * # Y"#??# #?""" ????????????? | | = """#??# #?????????????????? | | ##### # |=! ! #??# #?????????????????? | | #???##### % ########### #?????????????????? | | ##???# ***! #?# !]] # #?????????????????? | | T#???#!*%""" #?# ! ] # #?????????????????? | | ##???# * """ #?# ! # #######???????????? | | #????#!! """ #?# [ # +?????????? | | #????#!! #?# ![# #######???????????? | | #????#!! """ #?# # w#???? #??????????? | | #????# """ #?#####+## # = #??????????? | | #????# ??? #???# =%/g """???????????? | | #????# ??? #???# @ #?????????????????? | | #????####???###???# ^ ^^^^^#?????????????????? | | #?????????????????# #?????????????????? | | #?????????????????# #?????????????????? | | #???????????????? ????????????????? | | #####??????????????? = ??????????????? | | ??????????????????? u % ????????????? | | ????????????????? ######+##########???????????? | | ???????????????? ?????? ????????????????????? | | ???????????????? ??????? ????????????????????? | | ????????????????####??????? ????????????????????? | | ???????????????????????????" "???????????????????? | | ???????????????????????????" "????????%??????????? | | ???????????????????????????? "???????????????????? | | ????????????????????????????? ???????????????????? | | ?????????????????????????????????????????????????? | | | | | | | | | | | | | | | | | | | +----------------------------------------------------+ Best States ------------- Heat Dissipation 35 Energy Generation 10 Energy Capacity 250 Matter Stores 266 Matter Capacity 300 Sight Range 16 Terrain Scan Density 10 Evasion (%) 44 Item Schematics ----------------- None Robot Schematics ------------------ None Fabricated ------------ Nothing Repaired ---------- Nothing Studied --------- None Alien Tech Used ----------------- None Achievements -------------- None Challenges ------------ None Game ------ Seed TiamatReflexBoregun Manual? 0 Play Time 00:11:16 Cumulative 84.8 hours Start 2025.10.26 @ 15:36:23 End 2025.10.26 @ 15:49:18 Sessions 1 Manual Loads 0 Difficulty Rogue Special Mode None Game No. 132 Rogue 132 Adventurer 0 Explorer 0 Win Type - Total 0 Types 0/0/0/0/0/0/0/0/0/0 Lore% 28 Gallery% 31 Achievement% 24 Wizard Run 0 Options --------- Layout 1 ASCII 0 Keyboard 0 Movement Arrows Keybinds 0 Fullscreen 1 Font 24/Smallcaps Map View 50x35 Zoom Use 0% Tactical HUD 1 Map Filters NONE Filters NONE Steam 1 RUN: 8273028e-8304-4df8-966c-346e19fe80e0